{"text_format":"1","workbook":"xlsx","n_sheets":1,"sheets":["診療情報提供書"],"not_rendered":{"charts":0,"images":2,"macros":1,"external_links":0,"defined_names":1,"comments":0,"pivot_tables":0},"unopened":[],"bounds":{"document_bytes":16777216,"sheet_cells":100000,"rows_first":2000,"rows_last":500,"rows_between":2000,"halvings":0,"cell_chars":16384,"cell_head_chars":4096},"cells_cut":0,"cells_raw":0,"read":"whole","date_system":"1900"}

{"sheet":"診療情報提供書","index":0,"n_rows":244,"n_cols":129,"rows_kept":244,"cut":false,"hidden":false,"merged":[[150,103,151,103],[154,103,155,103],[156,102,157,102],[156,103,157,103],[158,102,159,102],[154,102,155,102],[158,103,159,103],[172,21,172,22],[173,10,173,48],[171,38,171,39],[171,45,171,64],[171,65,171,74],[172,23,172,25],[172,26,172,33],[172,34,172,40],[172,65,172,85],[170,45,170,64],[170,65,170,74],[170,10,171,15],[170,94,170,96],[170,97,170,98],[171,86,171,91],[171,92,171,93],[174,0,174,9],[174,33,174,39],[174,63,174,70],[175,33,175,39],[173,77,173,78],[177,53,177,60],[177,51,177,52],[176,0,176,9],[175,0,175,9],[173,71,173,76],[172,0,173,9],[175,31,175,32],[175,51,175,52],[175,53,175,60],[177,0,177,9],[177,21,177,22],[177,23,177,30],[177,31,177,32],[177,33,177,39],[175,23,175,30],[176,21,176,22],[176,23,176,30],[176,31,176,32],[176,33,176,39],[222,24,224,32],[222,0,224,23],[230,86,230,92],[230,93,230,94],[230,95,230,99],[209,58,210,60],[212,23,213,99],[230,79,230,83],[176,96,176,97],[230,46,230,50],[230,51,230,55],[230,58,230,64],[230,37,230,39],[230,84,230,85],[188,63,188,64],[188,65,188,68],[188,69,188,71],[209,36,210,37],[222,33,224,63],[226,59,226,60],[226,53,226,58],[230,67,230,73],[230,65,230,66],[230,74,230,77],[170,0,171,9],[170,27,170,32],[171,27,171,32],[170,33,170,34],[170,35,170,37],[170,38,170,39],[171,35,171,37],[141,67,141,73],[240,0,242,56],[242,60,245,99],[243,0,245,56],[233,0,234,58],[235,0,235,28],[236,0,237,28],[239,0,239,56],[235,29,235,56],[178,0,178,99],[202,70,203,82],[209,23,210,35],[209,47,210,50],[209,51,210,52],[227,0,228,9],[229,0,230,9],[182,0,182,38],[139,101,140,101],[152,102,153,102],[148,0,169,9],[148,10,169,99],[150,102,151,102],[147,0,147,9],[147,46,147,47],[147,48,147,69],[147,70,147,71],[145,97,146,98],[145,63,145,64],[147,72,147,99],[125,108,128,108],[125,109,128,109],[125,110,128,110],[126,75,127,76],[126,77,127,93],[126,94,127,95],[125,104,128,104],[125,105,128,105],[125,103,128,103],[124,100,125,100],[128,100,129,100],[125,106,128,106],[125,107,128,107],[129,103,132,103],[130,100,131,100],[130,101,131,101],[132,100,133,100],[116,102,124,102],[116,103,124,103],[125,102,128,102],[132,101,133,101],[124,101,125,101],[126,100,127,100],[126,101,127,101],[113,104,114,104],[115,11,116,18],[115,100,116,100],[115,101,116,101],[115,104,116,104],[116,58,117,59],[116,60,117,93],[113,70,114,82],[134,100,135,100],[129,102,132,102],[128,101,129,101],[133,102,136,102],[113,101,114,101],[113,102,115,102],[118,100,123,100],[118,101,123,101],[134,101,135,101],[133,0,135,23],[133,24,135,32],[133,33,135,63],[120,61,121,66],[123,0,124,18],[120,56,121,57],[119,69,122,99],[113,103,115,103],[137,102,139,102],[141,37,141,39],[141,40,141,42],[141,43,141,45],[141,46,141,50],[141,51,141,55],[141,56,141,57],[138,0,139,9],[138,10,139,35],[137,100,138,100],[137,101,138,101],[140,0,141,9],[141,22,141,30],[141,31,141,33],[141,34,141,36],[120,23,121,35],[137,51,137,52],[113,100,114,100],[141,95,141,99],[137,10,137,38],[137,46,137,49],[141,86,141,92],[139,100,140,100],[188,59,188,62],[219,100,220,100],[219,101,220,101],[226,102,228,102],[226,100,227,100],[226,101,227,101],[218,102,221,102],[221,101,222,101],[214,102,217,102],[207,101,212,101],[205,102,213,102],[223,100,224,100],[228,101,229,101],[223,101,224,101],[213,101,214,101],[202,100,203,100],[176,86,176,87],[176,88,176,95],[145,72,146,73],[145,74,146,96],[123,23,124,99],[120,36,121,37],[141,65,141,66],[202,62,203,69],[141,74,141,77],[141,79,141,83],[141,84,141,85],[171,33,171,34],[173,79,173,97],[188,87,188,90],[188,91,188,92],[141,93,141,94],[188,49,188,56],[141,58,141,64],[170,86,170,91],[170,92,170,93],[175,63,175,70],[171,94,171,96],[171,97,171,98],[188,57,188,58],[22,104,23,104],[24,104,25,104],[37,101,38,101],[39,101,40,101],[34,103,37,103],[35,94,36,95],[37,100,38,100],[34,102,37,102],[33,100,34,100],[35,100,36,100],[38,102,41,102],[32,23,33,99],[35,101,36,101],[38,103,41,103],[9,66,10,99],[10,11,10,13],[10,22,10,23],[25,58,26,59],[39,100,40,100],[10,14,10,21],[10,5,10,10],[36,0,37,18],[38,8,41,18],[9,33,10,65],[29,61,30,66],[29,47,30,50],[29,53,30,55],[29,58,30,60],[18,19,20,40],[18,46,20,99],[34,110,37,110],[34,104,37,104],[34,105,37,105],[34,106,37,106],[34,107,37,107],[34,108,37,108],[34,109,37,109],[0,0,0,38],[1,0,6,38],[10,0,10,4],[6,49,6,56],[6,57,6,58],[35,75,36,76],[25,102,33,102],[22,103,24,103],[25,103,33,103],[6,97,6,99],[24,101,25,101],[24,100,25,100],[22,101,23,101],[25,94,26,95],[27,101,32,101],[32,0,33,18],[28,69,31,99],[6,63,6,64],[80,33,80,34],[79,35,79,37],[50,34,50,36],[79,33,79,34],[47,36,48,37],[50,22,50,30],[6,59,6,62],[29,51,30,52],[29,42,30,46],[29,56,30,57],[42,0,44,23],[9,0,9,32],[10,24,10,32],[6,40,6,48],[11,0,13,9],[11,10,13,99],[14,19,17,40],[24,11,25,18],[29,23,30,35],[29,36,30,37],[29,38,30,41],[22,83,23,84],[22,62,23,69],[56,0,56,9],[79,27,79,32],[80,27,80,32],[81,0,82,9],[81,34,81,40],[82,71,82,76],[51,0,55,9],[46,59,46,60],[79,0,80,9],[57,10,78,99],[57,0,78,9],[49,0,50,9],[46,51,46,52],[46,61,46,68],[46,53,46,58],[46,10,46,38],[47,10,48,35],[46,0,46,9],[47,0,48,9],[80,94,80,96],[80,97,80,98],[79,94,79,96],[80,86,80,91],[50,43,50,45],[56,46,56,47],[79,65,79,74],[80,65,80,74],[50,37,50,39],[79,10,80,15],[79,38,79,39],[80,45,80,64],[82,10,82,48],[84,53,84,60],[84,33,84,39],[84,61,84,62],[84,51,84,52],[83,33,83,39],[80,38,80,39],[80,35,80,37],[67,103,68,103],[61,103,62,103],[63,103,64,103],[65,102,66,102],[50,84,50,85],[61,102,62,102],[63,102,64,102],[56,48,56,69],[56,72,56,99],[59,103,60,103],[50,58,50,64],[67,102,68,102],[50,93,50,94],[65,103,66,103],[50,95,50,99],[50,74,50,77],[50,65,50,66],[56,70,56,71],[50,51,50,55],[50,56,50,57],[54,72,55,73],[54,97,55,98],[54,74,55,96],[50,46,50,50],[6,65,6,68],[50,40,50,42],[22,70,23,82],[25,60,26,93],[6,69,6,71],[50,79,50,83],[35,77,36,93],[22,102,24,102],[47,46,49,99],[22,100,23,100],[22,60,23,61],[27,100,32,100],[6,87,6,90],[6,91,6,92],[46,46,46,49],[50,67,50,73],[42,33,44,63],[50,86,50,92],[50,31,50,33],[42,102,45,102],[48,100,49,100],[6,93,6,96],[42,24,44,32],[46,101,47,101],[48,101,49,101],[41,101,42,101],[51,103,53,103],[51,102,53,102],[59,102,60,102],[43,101,44,101],[33,101,34,101],[43,100,44,100],[46,100,47,100],[41,100,42,100],[46,102,48,102],[192,11,192,13],[192,14,192,21],[192,22,192,23],[192,24,192,32],[209,53,210,55],[209,56,210,57],[209,38,210,41],[228,100,229,100],[227,46,229,99],[221,100,222,100],[205,58,206,59],[205,60,206,93],[208,69,211,99],[209,61,210,66],[217,100,218,100],[207,100,212,100],[213,100,214,100],[204,100,205,100],[191,33,192,65],[204,11,205,18],[198,19,200,40],[198,44,200,99],[191,66,192,99],[202,83,203,84],[231,103,233,103],[231,102,233,102],[236,29,237,56],[191,0,191,32],[226,0,226,9],[226,10,226,38],[226,61,226,68],[194,19,197,40],[202,60,203,61],[216,0,217,18],[226,51,226,52],[226,46,226,49],[230,22,230,30],[230,31,230,33],[227,10,228,35],[230,56,230,57],[230,34,230,36],[230,40,230,42],[227,36,228,37],[230,43,230,45],[212,0,213,18],[209,42,210,46],[218,8,221,18],[192,0,192,4],[192,5,192,10],[181,0,181,51],[183,0,188,38],[188,40,188,48],[97,97,97,99],[100,0,100,32],[100,33,101,65],[100,66,101,99],[101,0,101,4],[101,5,101,10],[101,11,101,13],[101,14,101,21],[101,22,101,23],[101,24,101,32],[92,0,97,38],[97,40,97,48],[97,49,97,56],[97,57,97,58],[97,93,97,96],[97,59,97,62],[97,63,97,64],[97,65,97,68],[120,38,121,41],[120,42,121,46],[91,0,91,38],[86,63,86,70],[85,88,85,95],[83,63,83,70],[86,51,86,52],[86,21,86,22],[86,53,86,60],[86,33,86,39],[90,0,90,51],[88,0,88,75],[83,0,83,9],[84,63,84,70],[97,91,97,92],[86,31,86,32],[86,0,86,9],[86,23,86,30],[97,69,97,71],[97,87,97,90],[120,51,121,52],[79,97,79,98],[79,92,79,93],[79,86,79,91],[87,0,87,99],[85,96,85,97],[81,26,81,33],[81,65,81,85],[81,23,81,25],[84,23,84,30],[85,0,85,9],[85,31,85,32],[84,31,84,32],[85,21,85,22],[84,21,84,22],[81,21,81,22],[86,61,86,62],[84,0,84,9],[80,92,80,93],[79,45,79,64],[85,86,85,87],[85,23,85,30],[214,109,217,109],[214,110,217,110],[215,100,216,100],[215,101,216,101],[217,101,218,101],[214,105,217,105],[218,103,221,103],[214,103,217,103],[214,104,217,104],[214,107,217,107],[214,108,217,108],[214,106,217,106],[202,101,203,101],[202,104,203,104],[215,75,216,76],[215,77,216,93],[215,94,216,95],[204,101,205,101],[205,94,206,95],[204,104,205,104],[82,77,82,78],[173,98,173,99],[202,103,204,103],[202,102,204,102],[205,103,213,103],[142,102,144,102],[142,103,144,103],[179,0,179,75],[188,93,188,96],[188,97,188,99],[152,103,153,103],[177,61,177,62],[177,63,177,70],[175,61,175,62],[176,63,176,70],[175,21,175,22],[109,19,111,40],[142,0,146,9],[82,98,82,99],[82,79,82,97],[85,63,85,70],[85,33,85,39],[102,0,104,9],[102,10,104,99],[105,19,108,40],[113,60,114,61],[113,62,114,69],[129,8,132,18],[113,83,114,84],[116,94,117,95],[109,46,111,99],[127,0,128,18],[138,36,139,37],[138,46,140,99],[137,53,137,58],[137,59,137,60],[137,61,137,68],[120,47,121,50],[120,53,121,55],[120,58,121,60],[137,0,137,9]]}
["この欄は貴院IDのご記入・エンボス印字等にご利用ください。",null,null,null,null,null,null,null,null,null,null,null,null,null,null,null,null,null,null,null,null,null,null,null,null,null,null,null,null,null,null,null,null,null,null,null,null,null,null,null,null,null,null,null,null,null,null,null,null,null,null,null,null,null,null,null,null,null,null,null,null,null,null,null,null,null,null,null,null,null,null,null,null,null,null,null,null,null,null,null,null,null,null,null,null,null,null,null,null,null,null,null,null,null,null,null,null,null,null,"＜１枚目＞",null,null,"PET/CT","CT不要","-","-","-","PEM＋PET/CT","単独検査","単純MRI","造影MRI","CT（単純）","脳","頸部","胸部","上腹部","骨盤部","その他","US","受診結果DISK"]
[null,null,null,null,null,null,null,null,null,null,null,null,null,null,null,null,null,null,null,null,null,null,null,null,null,null,null,null,null,null,null,null,null,null,null,null,null,null,null,null,null,null,null,null,null,null,null,null,null,null,null,null,null,null,null,null,null,null,null,null,null,null,null,null,null,null,null,null,null,null,null,null,null,null,null,null,null,null,null,null,null,null,null,null,null,null,null,null,null,null,null,null,null,null,null,null,null,null,null,"ゆうあいクリニック宛",null,null,"C18","C10",null,null,null,"C13","C12","C14",null,"C15","C110","C111","C112","C113","C114","C115","C16","C21"]
[null,null,null,null,null,null,null,null,null,null,null,null,null,null,null,null,null,null,null,null,null,null,null,null,null,null,null,null,null,null,null,null,null,null,null,null,null,null,null,null,null,null,null,null,null,null,null,null,null,null,null,null,null,null,null,null,null,null,null,null,null,null,null,null,null,null,null,null,null,null,null,null,null,null,null,null,null,null,null,null,null,null,null,null,null,null,null,null,null,null,null,null,null,null,null,null,null,null,null,null,null,null,true,null,null,null,null,null,null,null,null,null,null,null,null,null,null,null,null,true]
[null,null,null,null,null,null,null,null,null,null,null,null,null,null,null,null,null,null,null,null,null,null,null,null,null,null,null,null,null,null,null,null,null,null,null,null,null,null,null,null,"診療情報提供書（画像診断依頼書）"]
[null,null,null,null,null,null,null,null,null,null,null,null,null,null,null,null,null,null,null,null,null,null,null,null,null,null,null,null,null,null,null,null,null,null,null,null,null,null,null,null,null,"ゆうあいクリニック　小澤　幸彦　先生",null,null,null,null,null,null,null,null,null,null,null,null,null,null,null,null,null,null,null,null,null,null,null,null,null,null,null,null,null,null,null,null,null,null,null,null,null,null,null,null,null,null,null,null,null,null,null,null,null,null,null,null,null,null,null,null,null,null,null,"肺癌","大腸癌","乳癌","頭頸部癌","悪性リンパ腫","多発性骨髄腫","膵癌","子宮頸癌","子宮体癌","卵巣癌","胆嚢癌","胆管癌","肝細胞癌","食道癌","胃癌","GIST","前立腺癌","腎癌","膀胱癌","皮膚癌","軟部組織腫瘍","脳腫瘍","心筋サルコイドーシス","ヘパリンの使用可/使用不可","その他","病期診断","転移再発診断","その他"]
[null,null,null,null,null,null,null,null,null,null,null,null,null,null,null,null,null,null,null,null,null,null,null,null,null,null,null,null,null,null,null,null,null,null,null,null,null,null,null,null,null,"以下の患者様の画像診断をお願い申し上げます。",null,null,null,null,null,null,null,null,null,null,null,null,null,null,null,null,null,null,null,null,null,null,null,null,null,null,null,null,null,null,null,null,null,null,null,null,null,null,null,null,null,null,null,null,null,null,null,null,null,null,null,null,null,null,null,null,null,null,null,"C22","C25","C28","C32","C33","C38","C39","C23",null,"C26","C29","C31","C34","C35","C36","C41","C40",null,null,"C24","C27","C30","C346","G29","C42","C43","C44","C45"]
[null,null,null,null,null,null,null,null,null,null,null,null,null,null,null,null,null,null,null,null,null,null,null,null,null,null,null,null,null,null,null,null,null,null,null,null,null,null,null,null,"予約日時：",null,null,null,null,null,null,null,null,null,null,null,null,null,null,null,null,"年",null,null,null,null,null,"月",null,null,null,null,null,"日（",null,null,null,null,null,null,null,null,null,null,null,null,null,null,null,"）",null,null,null,null,null,"時",null,null,null,null,null,"分"]
[]
["貴医療機関名",null,null,null,null,null,null,null,null,null,null,null,null,null,null,null,null,null,null,null,null,null,null,null,null,null,null,null,null,null,null,null,null,"診療科\n\n",null,null,null,null,null,null,null,null,null,null,null,null,null,null,null,null,null,null,null,null,null,null,null,null,null,null,null,null,null,null,null,null,"担当医師（フルネーム）\n\n",null,null,null,null,null,null,null,null,null,null,null,null,null,null,null,null,null,null,null,null,null,null,null,null,null,null,null,null,null,null,null,null,null,null,"午前/午後","MRI","US","PEM",null,null,"性別","生年月日","手術歴1","手術歴2","化学療法","放射線治療","糖 尿 病","3ヶ月以内のG-CSFの使用","ﾍﾟｰｽﾒｰｶｰ","体内金属","人工肛門","気管切開","妊　娠","感染症","喘　息","ｱﾚﾙｷﾞｰ","現在状況","30分静止","経口摂取","自力歩行"]
[null,null,null,null,null,null,null,null,null,null,null,null,null,null,null,null,null,null,null,null,null,null,null,null,null,null,null,null,null,null,null,null,null,null,null,null,null,null,null,null,null,null,null,null,null,null,null,null,null,null,null,null,null,null,null,null,null,null,null,null,null,null,null,null,null,null,null,null,null,null,null,null,null,null,null,null,null,null,null,null,null,null,null,null,null,null,null,null,null,null,null,null,null,null,null,null,null,null,null,null,null,"G1","G2","G3","G4",null,null,"G9","G10","G11","G12","G13","G14","G15","G16","G17","G18","G19","G20","G21","G22","G23","G24","G25","G26","G27","G28"]
["TEL:",null,null,null,null,null,null,null,null,null,null,"（",null,null,null,null,null,null,null,null,null,null,"）"]
["▽依頼内容",null,null,null,null,null,null,null,null,null,"※PET検査またはPET/CT検査にMRI検査、US検査を一つ以上追加した場合、「総合画像診断」という名称を使用します。"]
[]
[]
[null,null,null,null,null,null,null,null,null,null,null,null,null,null,null,null,null,null,null,"（頭頂部から大腿基部まで）"]
[]
[]
[]
[null,null,null,null,null,null,null,null,null,null,null,null,null,null,null,null,null,null,null,"※PEM：乳房専用PET",null,null,null,null,null,null,null,null,null,null,null,null,null,null,null,null,null,null,null,null,null,null,null,null,null,null,"※PET/CT装置の特性上、吸収補正は低線量CTで減弱補正を行います。"]
[]
[]
[]
[null,null,null,null,null,null,null,null,null,null,null,null,null,null,null,null,null,null,null,null,null,null,null,null,null,null,null,null,null,null,null,null,null,null,null,null,null,null,null,null,null,null,null,null,null,null,null,null,null,null,null,null,null,null,null,null,null,null,null,null,"（",null,"目的臓器：",null,null,null,null,null,null,null,null,null,null,null,null,null,null,null,null,null,null,null,null,"）"]
[]
[null,null,null,null,null,null,null,null,null,null,null,"※1部位のみ"]
[null,null,null,null,null,null,null,null,null,null,null,null,null,null,null,null,null,null,null,null,null,null,null,null,null,null,null,null,null,null,null,null,null,null,null,null,null,null,null,null,null,null,null,null,null,null,null,null,null,null,null,null,null,null,null,null,null,null,"（",null,null,null,null,null,null,null,null,null,null,null,null,null,null,null,null,null,null,null,null,null,null,null,null,null,null,null,null,null,null,null,null,null,null,null,"）"]
[]
[]
[null,null,null,null,null,null,null,null,null,null,null,null,null,null,null,null,null,null,null,null,null,null,null,null,null,null,null,null,null,null,null,null,null,null,null,null,null,null,null,null,null,null,null,null,null,null,null,null,null,null,null,null,null,null,null,null,null,null,null,null,null,null,null,null,null,null,null,null,null,"※検査予約日から3ヶ月以内の値を\n　　記載してください。"]
[null,null,null,null,null,null,null,null,null,null,null,null,null,null,null,null,null,null,null,null,null,null,null,"血清クレアチニン値",null,null,null,null,null,null,null,null,null,null,null,null,"（",null,null,null,null,null,"mg/dl",null,null,null,null,null,null,null,null,"年",null,null,null,null,"月",null,null,null,null,"日 測定）"]
[]
[]
["※ガドリニウム系造影剤使用",null,null,null,null,null,null,null,null,null,null,null,null,null,null,null,null,null,null,null,null,null,null,"※血清クレアチニン男性1.6mg/dl 女性1.2mg/dlを超える場合や気管支喘息の場合は左記検査をお引き受けできません。"]
[]
[]
[null,null,null,null,null,null,null,null,null,null,null,null,null,null,null,null,null,null,null,null,null,null,null,null,null,null,null,null,null,null,null,null,null,null,null,null,null,null,null,null,null,null,null,null,null,null,null,null,null,null,null,null,null,null,null,null,null,null,null,null,null,null,null,null,null,null,null,null,null,null,null,null,null,null,null,"（",null,null,null,null,null,null,null,null,null,null,null,null,null,null,null,null,null,null,"）"]
["　　　　　※複数部位選択可能"]
[]
[null,null,null,null,null,null,null,null,"※1部位のみ"]
[]
[]
[null,null,null,null,null,null,null,null,null,null,null,null,null,null,null,null,null,null,null,null,null,null,null,null,null,null,null,null,null,null,null,null,null,null,null,null,null,null,null,null,null,null,null,null,null,null,null,null,null,null,null,null,null,null,null,null,null,null,null,null,null,null,null,null,null,null,null,null,null,null,null,null,null,null,null,null,null,null,null,null,null,null,null,null,null,null,null,null,null,null,null,null,"　"]
["受診結果DISK",null,null,null,null,null,null,null,null,null,null,null,null,null,null,null,null,null,null,null,null,null,null,null,"必要",null,null,null,null,null,null,null,null,"※ご不要の場合にはご連絡ください。"]
[]
[]
[]
["ふりがな",null,null,null,null,null,null,null,null,null,null,null,null,null,null,null,null,null,null,null,null,null,null,null,null,null,null,null,null,null,null,null,null,null,null,null,null,null,null,null,"性　別",null,null,null,null,null,"住所",null,null,null,null,"〒",null,null,null,null,null,null,null,"―"]
["患者様名",null,null,null,null,null,null,null,null,null,null,null,null,null,null,null,null,null,null,null,null,null,null,null,null,null,null,null,null,null,null,null,null,null,null,null,"様"]
[]
["生年月日"]
[null,null,null,null,null,null,null,null,null,null,null,null,null,null,null,null,null,null,null,null,null,null,null,null,null,null,null,null,null,null,null,"年",null,null,null,null,null,"月",null,null,null,null,null,"日",null,null,"TEL：",null,null,null,null,null,null,null,null,null,"（",null,null,null,null,null,null,null,null,"）",null,null,null,null,null,null,null,null,"携帯：",null,null,null,null,null,null,null,null,null,"（",null,null,null,null,null,null,null,null,"）"]
["臨床診断"]
[]
[]
[null,null,null,null,null,null,null,null,null,null,null,null,null,null,null,null,null,null,null,null,null,null,null,null,null,null,null,null,null,null,null,null,null,null,null,null,null,null,null,null,null,null,null,null,null,null,null,null,null,null,null,null,null,null,null,null,null,null,null,null,null,null,null,null,null,null,null,null,null,null,null,null,"（",null,null,null,null,null,null,null,null,null,null,null,null,null,null,null,null,null,null,null,null,null,null,null,null,"）"]
[]
["検査目的",null,null,null,null,null,null,null,null,null,null,null,null,null,null,null,null,null,null,null,null,null,null,null,null,null,null,null,null,null,null,null,null,null,null,null,null,null,null,null,null,null,null,null,null,null,"（",null,null,null,null,null,null,null,null,null,null,null,null,null,null,null,null,null,null,null,null,null,null,null,"）",null,"※スクリーニングおよび良悪鑑別は自費となります。"]
["病理検査・\n腫瘍ﾏｰｶｰ・\n臨床経過等\n\n※必ずご記入\nください。"]
[]
[]
[]
[]
[]
[]
[]
[]
[]
[]
[]
[]
[]
[]
[]
[]
[]
[]
[]
[]
[]
["治 療 歴",null,null,null,null,null,null,null,null,null,"手術歴",null,null,null,null,null,null,null,null,null,null,null,null,null,null,null,null,null,null,null,null,null,null,"年",null,null,null,null,"月",null,null,"術式",null,null,null,null,null,null,null,null,null,null,null,null,null,null,null,null,null,null,null,null,null,null,null,"化学療法",null,null,null,null,null,null,null,null,null,null,null,null,null,null,null,null,null,null,null,null,null,null,null,null,null,null,"年",null,null,null,null,"月"]
[null,null,null,null,null,null,null,null,null,null,null,null,null,null,null,null,null,null,null,null,null,null,null,null,null,null,null,null,null,null,null,null,null,"年",null,null,null,null,"月",null,null,"術式",null,null,null,null,null,null,null,null,null,null,null,null,null,null,null,null,null,null,null,null,null,null,null,"放射線治療",null,null,null,null,null,null,null,null,null,null,null,null,null,null,null,null,null,null,null,null,null,null,null,null,null,null,"年",null,null,null,null,"月"]
["糖 尿 病",null,null,null,null,null,null,null,null,null,null,null,null,null,null,null,null,null,null,null,null,"（",null,"BS",null,null,null,null,null,null,null,null,null,null,"mg/dl）",null,null,null,null,null,null,null,null,null,null,null,null,null,null,null,null,null,null,null,null,null,null,null,null,null,null,null,null,null,null,"3ヶ月以内のG-CSFの使用"]
[null,null,null,null,null,null,null,null,null,null,"※糖尿病薬剤は検査当日の使用を避けてください。\n※空腹時血糖200mg/dlを超える場合はご相談ください。",null,null,null,null,null,null,null,null,null,null,null,null,null,null,null,null,null,null,null,null,null,null,null,null,null,null,null,null,null,null,null,null,null,null,null,null,null,null,null,null,null,null,null,null,null,null,null,null,null,null,null,null,null,null,null,null,null,null,null,null,"薬剤名",null,null,null,null,null,"（",null,null,null,null,null,null,null,null,null,null,null,null,null,null,null,null,null,null,null,null,"）"]
["ﾍﾟｰｽﾒｰｶｰ",null,null,null,null,null,null,null,null,null,null,null,null,null,null,null,null,null,null,null,null,null,null,null,null,null,null,null,null,null,null,null,null,"妊　娠",null,null,null,null,null,null,null,null,null,null,null,null,null,null,null,null,null,null,null,null,null,null,null,null,null,null,null,null,null,"現在状況"]
["体内金属",null,null,null,null,null,null,null,null,null,null,null,null,null,null,null,null,null,null,null,null,"（",null,null,null,null,null,null,null,null,null,"）",null,"感染症",null,null,null,null,null,null,null,null,null,null,null,null,null,null,null,null,null,"（",null,null,null,null,null,null,null,null,null,"）",null,"30分静止"]
["人工肛門",null,null,null,null,null,null,null,null,null,null,null,null,null,null,null,null,null,null,null,null,"（",null,null,null,null,null,null,null,null,null,"）",null,"喘　息",null,null,null,null,null,null,null,null,null,null,null,null,null,null,null,null,null,null,null,null,null,null,null,null,null,null,null,null,null,"経口摂取",null,null,null,null,null,null,null,null,null,null,null,null,null,null,null,null,null,null,null,null,null,null,"（",null,null,null,null,null,null,null,null,null,"）"]
["気管切開",null,null,null,null,null,null,null,null,null,null,null,null,null,null,null,null,null,null,null,null,"（",null,null,null,null,null,null,null,null,null,"）",null,"ｱﾚﾙｷﾞｰ",null,null,null,null,null,null,null,null,null,null,null,null,null,null,null,null,null,"（",null,null,null,null,null,null,null,null,null,"）",null,"自力歩行"]
["持込画像は、データ（DISK）のみお受けいたします。ゆうあいクリニックでの検査結果を直接依頼元の医療機関へ提供することについて受診者の同意がある場合に限り、本診療情報提供書をご利用ください。なお、特別な取扱いが必要な場合には、下記の電話番号へご連絡ください。"]
["コールセンター臨床　FAX 045-548-1969 / TEL 045-540-8215"]
[]
["予約フリーダイヤル　0120-852-026"]
["この欄は貴院IDのご記入・エンボス印字等にご利用ください。",null,null,null,null,null,null,null,null,null,null,null,null,null,null,null,null,null,null,null,null,null,null,null,null,null,null,null,null,null,null,null,null,null,null,null,null,null,null,null,null,null,null,null,null,null,null,null,null,null,null,null,null,null,null,null,null,null,null,null,null,null,null,null,null,null,null,null,null,null,null,null,null,null,null,null,null,null,null,null,null,null,null,null,null,null,null,null,null,null,null,null,null,null,null,null,null,null,null,"＜２枚目＞"]
[{"$f":"IF(ISBLANK(A2), \"\", A2)","v":""},null,null,null,null,null,null,null,null,null,null,null,null,null,null,null,null,null,null,null,null,null,null,null,null,null,null,null,null,null,null,null,null,null,null,null,null,null,null,null,null,null,null,null,null,null,null,null,null,null,null,null,null,null,null,null,null,null,null,null,null,null,null,null,null,null,null,null,null,null,null,null,null,null,null,null,null,null,null,null,null,null,null,null,null,null,null,null,null,null,null,null,null,null,null,null,null,null,null,"ご紹介元医療機関控"]
[]
[null,null,null,null,null,null,null,null,null,null,null,null,null,null,null,null,null,null,null,null,null,null,null,null,null,null,null,null,null,null,null,null,null,null,null,null,null,null,null,null,"診療情報提供書（画像診断依頼書）"]
[null,null,null,null,null,null,null,null,null,null,null,null,null,null,null,null,null,null,null,null,null,null,null,null,null,null,null,null,null,null,null,null,null,null,null,null,null,null,null,null,null,"ゆうあいクリニック　小澤　幸彦　先生"]
[null,null,null,null,null,null,null,null,null,null,null,null,null,null,null,null,null,null,null,null,null,null,null,null,null,null,null,null,null,null,null,null,null,null,null,null,null,null,null,null,null,"以下の患者様の画像診断をお願い申し上げます。"]
[null,null,null,null,null,null,null,null,null,null,null,null,null,null,null,null,null,null,null,null,null,null,null,null,null,null,null,null,null,null,null,null,null,null,null,null,null,null,null,null,"予約日時：",null,null,null,null,null,null,null,null,{"$f":"IF(ISBLANK(AX7), \"\", AX7)","v":""},null,null,null,null,null,null,null,"年",null,{"$f":"IF(ISBLANK(BH7), \"\", BH7)","v":""},null,null,null,"月",null,{"$f":"IF(ISBLANK(BN7), \"\", BN7)","v":""},null,null,null,"日（",null,null,null,null,null,null,null,null,null,null,null,null,null,null,null,"）",null,{"$f":"IF(ISBLANK(CJ7), \"\", CJ7)","v":""},null,null,null,"時",null,{"$f":"IF(ISBLANK(CP7), \"\", CP7)","v":""},null,null,null,"分"]
[]
["貴医療機関名",null,null,null,null,null,null,null,null,null,null,null,null,null,null,null,null,null,null,null,null,null,null,null,null,null,null,null,null,null,null,null,null,"診療科\n\n",null,null,null,null,null,null,null,null,null,null,null,null,null,null,null,null,null,null,null,null,null,null,null,null,null,null,null,null,null,null,null,null,"担当医師（フルネーム）\n\n"]
[{"$f":"IF(ISBLANK(A10), \"\", A10)","v":""},null,null,null,null,null,null,null,null,null,null,null,null,null,null,null,null,null,null,null,null,null,null,null,null,null,null,null,null,null,null,null,null,{"$f":"IF(ISBLANK(AH10), \"\", AH10)","v":""},null,null,null,null,null,null,null,null,null,null,null,null,null,null,null,null,null,null,null,null,null,null,null,null,null,null,null,null,null,null,null,null,{"$f":"IF(ISBLANK(BO10), \"\", BO10)","v":""}]
["TEL:",null,null,null,null,{"$f":"IF(ISBLANK(F11), \"\", F11)","v":""},null,null,null,null,null,"（",null,null,{"$f":"IF(ISBLANK(O11), \"\", O11)","v":""},null,null,null,null,null,null,null,"）",null,{"$f":"IF(ISBLANK(Y11), \"\", Y11)","v":""}]
["▽依頼内容",null,null,null,null,null,null,null,null,null,"※PET検査またはPET/CT検査にMRI検査、US検査を一つ以上追加した場合、「総合画像診断」という名称を使用します。"]
[]
[]
[null,null,null,null,null,null,null,null,null,null,null,null,null,null,null,null,null,null,null,"（頭頂部から大腿基部まで）"]
[]
[]
[]
[null,null,null,null,null,null,null,null,null,null,null,null,null,null,null,null,null,null,null,"※PEM：乳房専用PET",null,null,null,null,null,null,null,null,null,null,null,null,null,null,null,null,null,null,null,null,null,null,null,null,null,null,"※PET/CT装置の特性上、吸収補正は低線量CTで減弱補正を行います。"]
[]
[]
[]
[null,null,null,null,null,null,null,null,null,null,null,null,null,null,null,null,null,null,null,null,null,null,null,null,null,null,null,null,null,null,null,null,null,null,null,null,null,null,null,null,null,null,null,null,null,null,null,null,null,null,null,null,null,null,null,null,null,null,null,null,"（",null,"目的臓器：",null,null,null,null,null,null,null,{"$f":"IF(ISBLANK(BS23), \"\", BS23)","v":""},null,null,null,null,null,null,null,null,null,null,null,null,"）"]
[]
[null,null,null,null,null,null,null,null,null,null,null,"※1部位のみ"]
[null,null,null,null,null,null,null,null,null,null,null,null,null,null,null,null,null,null,null,null,null,null,null,null,null,null,null,null,null,null,null,null,null,null,null,null,null,null,null,null,null,null,null,null,null,null,null,null,null,null,null,null,null,null,null,null,null,null,"（",null,{"$f":"IF(ISBLANK(BI26), \"\", BI26)","v":""},null,null,null,null,null,null,null,null,null,null,null,null,null,null,null,null,null,null,null,null,null,null,null,null,null,null,null,null,null,null,null,null,null,"）"]
[]
[]
[null,null,null,null,null,null,null,null,null,null,null,null,null,null,null,null,null,null,null,null,null,null,null,null,null,null,null,null,null,null,null,null,null,null,null,null,null,null,null,null,null,null,null,null,null,null,null,null,null,null,null,null,null,null,null,null,null,null,null,null,null,null,null,null,null,null,null,null,null,"※検査予約日から3ヶ月以内の値を\n　　記載してください。"]
[null,null,null,null,null,null,null,null,null,null,null,null,null,null,null,null,null,null,null,null,null,null,null,"血清クレアチニン値",null,null,null,null,null,null,null,null,null,null,null,null,"（",null,{"$f":"IF(ISBLANK(AM30), \"\", AM30)","v":""},null,null,null,"mg/dl",null,null,null,null,{"$f":"IF(ISBLANK(AV30), \"\", AV30)","v":""},null,null,null,"年",null,{"$f":"IF(ISBLANK(BB30), \"\", BB30)","v":""},null,null,"月",null,{"$f":"IF(ISBLANK(BG30), \"\", BG30)","v":""},null,null,"日 測定）"]
[]
[]
["※ガドリニウム系造影剤使用",null,null,null,null,null,null,null,null,null,null,null,null,null,null,null,null,null,null,null,null,null,null,"※血清クレアチニン男性1.6mg/dl 女性1.2mg/dlを超える場合や気管支喘息の場合は左記検査をお引き受けできません。"]
[]
[]
[null,null,null,null,null,null,null,null,null,null,null,null,null,null,null,null,null,null,null,null,null,null,null,null,null,null,null,null,null,null,null,null,null,null,null,null,null,null,null,null,null,null,null,null,null,null,null,null,null,null,null,null,null,null,null,null,null,null,null,null,null,null,null,null,null,null,null,null,null,null,null,null,null,null,null,"（",null,{"$f":"IF(ISBLANK(BZ36), \"\", BZ36)","v":""},null,null,null,null,null,null,null,null,null,null,null,null,null,null,null,null,"）"]
["　　　　　※複数部位選択可能"]
[]
[null,null,null,null,null,null,null,null,"※1部位のみ"]
[]
[]
[null,null,null,null,null,null,null,null,null,null,null,null,null,null,null,null,null,null,null,null,null,null,null,null,null,null,null,null,null,null,null,null,null,null,null,null,null,null,null,null,null,null,null,null,null,null,null,null,null,null,null,null,null,null,null,null,null,null,null,null,null,null,null,null,null,null,null,null,null,null,null,null,null,null,null,null,null,null,null,null,null,null,null,null,null,null,null,null,null,null,null,null,"　"]
["受診結果DISK",null,null,null,null,null,null,null,null,null,null,null,null,null,null,null,null,null,null,null,null,null,null,null,"必要",null,null,null,null,null,null,null,null,"※ご不要の場合にはご連絡ください。"]
[]
[]
[]
["ふりがな",null,null,null,null,null,null,null,null,null,{"$f":"IF(ISBLANK(K47), \"\", K47)","v":""},null,null,null,null,null,null,null,null,null,null,null,null,null,null,null,null,null,null,null,null,null,null,null,null,null,null,null,null,null,"性　別",null,null,null,null,null,"住所",null,null,null,null,"〒",null,{"$f":"IF(ISBLANK(BB47), \"\", BB47)","v":""},null,null,null,null,null,"―",null,{"$f":"IF(ISBLANK(BJ47), \"\", BJ47)","v":""}]
["患者様名",null,null,null,null,null,null,null,null,null,{"$f":"IF(ISBLANK(K48), \"\", K48)","v":""},null,null,null,null,null,null,null,null,null,null,null,null,null,null,null,null,null,null,null,null,null,null,null,null,null,"様",null,null,null,null,null,null,null,null,null,{"$f":"IF(ISBLANK(AU48), \"\", AU48)","v":""}]
[]
["生年月日"]
[null,null,null,null,null,null,null,null,null,null,null,null,null,null,null,null,null,null,null,null,null,null,{"$f":"IF(ISBLANK(W51), \"\", W51)","v":""},null,null,null,null,null,null,null,null,"年",null,null,{"$f":"IF(ISBLANK(AI51), \"\", AI51)","v":""},null,null,"月",null,null,{"$f":"IF(ISBLANK(AO51), \"\", AO51)","v":""},null,null,"日",null,null,"TEL：",null,null,null,null,{"$f":"IF(ISBLANK(AZ51), \"\", AZ51)","v":""},null,null,null,null,"（",null,{"$f":"IF(ISBLANK(BG51), \"\", BG51)","v":""},null,null,null,null,null,null,"）",null,{"$f":"IF(ISBLANK(BP51), \"\", BP51)","v":""},null,null,null,null,null,null,"携帯：",null,null,null,null,{"$f":"IF(ISBLANK(CB51), \"\", CB51)","v":""},null,null,null,null,"（",null,{"$f":"IF(ISBLANK(CI51), \"\", CI51)","v":""},null,null,null,null,null,null,"）",null,{"$f":"IF(ISBLANK(CR51), \"\", CR51)","v":""}]
["臨床診断"]
[]
[]
[null,null,null,null,null,null,null,null,null,null,null,null,null,null,null,null,null,null,null,null,null,null,null,null,null,null,null,null,null,null,null,null,null,null,null,null,null,null,null,null,null,null,null,null,null,null,null,null,null,null,null,null,null,null,null,null,null,null,null,null,null,null,null,null,null,null,null,null,null,null,null,null,"（",null,{"$f":"IF(ISBLANK(BW55), \"\", BW55)","v":""},null,null,null,null,null,null,null,null,null,null,null,null,null,null,null,null,null,null,null,null,null,null,"）"]
[]
["検査目的",null,null,null,null,null,null,null,null,null,null,null,null,null,null,null,null,null,null,null,null,null,null,null,null,null,null,null,null,null,null,null,null,null,null,null,null,null,null,null,null,null,null,null,null,null,"（",null,{"$f":"IF(ISBLANK(AW57), \"\", AW57)","v":""},null,null,null,null,null,null,null,null,null,null,null,null,null,null,null,null,null,null,null,null,null,"）",null,"※スクリーニングおよび良悪鑑別は自費となります。"]
["病理検査・\n腫瘍ﾏｰｶｰ・\n臨床経過等\n\n※必ずご記入\nください。",null,null,null,null,null,null,null,null,null,{"$f":"IF(ISBLANK(K58), \"\", K58)","v":""}]
[]
[]
[]
[]
[]
[]
[]
[]
[]
[]
[]
[]
[]
[]
[]
[]
[]
[]
[]
[]
[]
["治 療 歴",null,null,null,null,null,null,null,null,null,"手術歴",null,null,null,null,null,null,null,null,null,null,null,null,null,null,null,null,{"$f":"IF(ISBLANK(AB80), \"\", AB80)","v":""},null,null,null,null,null,"年",null,{"$f":"IF(ISBLANK(AJ80), \"\", AJ80)","v":""},null,null,"月",null,null,"術式",null,null,null,{"$f":"IF(ISBLANK(AT80), \"\", AT80)","v":""},null,null,null,null,null,null,null,null,null,null,null,null,null,null,null,null,null,null,null,"化学療法",null,null,null,null,null,null,null,null,null,null,null,null,null,null,null,null,null,null,null,null,{"$f":"IF(ISBLANK(CI80), \"\", CI80)","v":""},null,null,null,null,null,"年",null,{"$f":"IF(ISBLANK(CQ80), \"\", CQ80)","v":""},null,null,"月"]
[null,null,null,null,null,null,null,null,null,null,null,null,null,null,null,null,null,null,null,null,null,null,null,null,null,null,null,{"$f":"IF(ISBLANK(AB81), \"\", AB81)","v":""},null,null,null,null,null,"年",null,{"$f":"IF(ISBLANK(AJ81), \"\", AJ81)","v":""},null,null,"月",null,null,"術式",null,null,null,{"$f":"IF(ISBLANK(AT81), \"\", AT81)","v":""},null,null,null,null,null,null,null,null,null,null,null,null,null,null,null,null,null,null,null,"放射線治療",null,null,null,null,null,null,null,null,null,null,null,null,null,null,null,null,null,null,null,null,{"$f":"IF(ISBLANK(CI81), \"\", CI81)","v":""},null,null,null,null,null,"年",null,{"$f":"IF(ISBLANK(CQ81), \"\", CQ81)","v":""},null,null,"月"]
["糖 尿 病",null,null,null,null,null,null,null,null,null,null,null,null,null,null,null,null,null,null,null,null,"（",null,"BS",null,null,{"$f":"IF(ISBLANK(AA82), \"\", AA82)","v":""},null,null,null,null,null,null,null,"mg/dl）",null,null,null,null,null,null,null,null,null,null,null,null,null,null,null,null,null,null,null,null,null,null,null,null,null,null,null,null,null,null,"3ヶ月以内のG-CSFの使用"]
[null,null,null,null,null,null,null,null,null,null,"※糖尿病薬剤は検査当日の使用を避けてください。\n※空腹時血糖200mg/dlを超える場合はご相談ください。",null,null,null,null,null,null,null,null,null,null,null,null,null,null,null,null,null,null,null,null,null,null,null,null,null,null,null,null,null,null,null,null,null,null,null,null,null,null,null,null,null,null,null,null,null,null,null,null,null,null,null,null,null,null,null,null,null,null,null,null,"薬剤名",null,null,null,null,null,"（",null,{"$f":"IF(ISBLANK(CB83), \"\", CB83)","v":""},null,null,null,null,null,null,null,null,null,null,null,null,null,null,null,null,null,null,"）"]
["ﾍﾟｰｽﾒｰｶｰ",null,null,null,null,null,null,null,null,null,null,null,null,null,null,null,null,null,null,null,null,null,null,null,null,null,null,null,null,null,null,null,null,"妊　娠",null,null,null,null,null,null,null,null,null,null,null,null,null,null,null,null,null,null,null,null,null,null,null,null,null,null,null,null,null,"現在状況"]
["体内金属",null,null,null,null,null,null,null,null,null,null,null,null,null,null,null,null,null,null,null,null,"（",null,{"$f":"IF(ISBLANK(X85), \"\", X85)","v":""},null,null,null,null,null,null,null,"）",null,"感染症",null,null,null,null,null,null,null,null,null,null,null,null,null,null,null,null,null,"（",null,{"$f":"IF(ISBLANK(BB85), \"\", BB85)","v":""},null,null,null,null,null,null,null,"）",null,"30分静止"]
["人工肛門",null,null,null,null,null,null,null,null,null,null,null,null,null,null,null,null,null,null,null,null,"（",null,{"$f":"IF(ISBLANK(X86), \"\", X86)","v":""},null,null,null,null,null,null,null,"）",null,"喘　息",null,null,null,null,null,null,null,null,null,null,null,null,null,null,null,null,null,null,null,null,null,null,null,null,null,null,null,null,null,"経口摂取",null,null,null,null,null,null,null,null,null,null,null,null,null,null,null,null,null,null,null,null,null,null,"（",null,{"$f":"IF(ISBLANK(CK86), \"\", CK86)","v":""},null,null,null,null,null,null,null,"）"]
["気管切開",null,null,null,null,null,null,null,null,null,null,null,null,null,null,null,null,null,null,null,null,"（",null,{"$f":"IF(ISBLANK(X87), \"\", X87)","v":""},null,null,null,null,null,null,null,"）",null,"ｱﾚﾙｷﾞｰ",null,null,null,null,null,null,null,null,null,null,null,null,null,null,null,null,null,"（",null,{"$f":"IF(ISBLANK(BB87), \"\", BB87)","v":""},null,null,null,null,null,null,null,"）",null,"自力歩行"]
["持込画像は、データ（DISK）のみお受けいたします。ゆうあいクリニックでの検査結果を直接依頼元の医療機関へ提供することについて受診者の同意がある場合に限り、本診療情報提供書をご利用ください。なお、特別な取扱いが必要な場合には、下記の電話番号へご連絡ください。"]
["コールセンター臨床　FAX 045-548-1969 / TEL 045-540-8215"]
[]
["予約フリーダイヤル　0120-852-026"]
["この欄は貴院IDのご記入・エンボス印字等にご利用ください。",null,null,null,null,null,null,null,null,null,null,null,null,null,null,null,null,null,null,null,null,null,null,null,null,null,null,null,null,null,null,null,null,null,null,null,null,null,null,null,null,null,null,null,null,null,null,null,null,null,null,null,null,null,null,null,null,null,null,null,null,null,null,null,null,null,null,null,null,null,null,null,null,null,null,null,null,null,null,null,null,null,null,null,null,null,null,null,null,null,null,null,null,null,null,null,null,null,null,"＜３枚目＞"]
[{"$f":"IF(ISBLANK(A2), \"\", A2)","v":""}]
[]
[null,null,null,null,null,null,null,null,null,null,null,null,null,null,null,null,null,null,null,null,null,null,null,null,null,null,null,null,null,null,null,null,null,null,null,null,null,null,null,null,"検査予約票"]
[]
[]
[null,null,null,null,null,null,null,null,null,null,null,null,null,null,null,null,null,null,null,null,null,null,null,null,null,null,null,null,null,null,null,null,null,null,null,null,null,null,null,null,"予約日時：",null,null,null,null,null,null,null,null,{"$f":"IF(ISBLANK(AX7), \"\", AX7)","v":""},null,null,null,null,null,null,null,"年",null,{"$f":"IF(ISBLANK(BH7), \"\", BH7)","v":""},null,null,null,"月",null,{"$f":"IF(ISBLANK(BN7), \"\", BN7)","v":""},null,null,null,"日（",null,null,null,null,null,null,null,null,null,null,null,null,null,null,null,"）",null,{"$f":"IF(ISBLANK(CJ7), \"\", CJ7)","v":""},null,null,null,"時",null,{"$f":"IF(ISBLANK(CP7), \"\", CP7)","v":""},null,null,null,"分"]
[]
["貴医療機関名",null,null,null,null,null,null,null,null,null,null,null,null,null,null,null,null,null,null,null,null,null,null,null,null,null,null,null,null,null,null,null,null,"診療科\n\n",null,null,null,null,null,null,null,null,null,null,null,null,null,null,null,null,null,null,null,null,null,null,null,null,null,null,null,null,null,null,null,null,"担当医師（フルネーム）\n\n"]
[{"$f":"IF(ISBLANK(A10), \"\", A10)","v":""},null,null,null,null,null,null,null,null,null,null,null,null,null,null,null,null,null,null,null,null,null,null,null,null,null,null,null,null,null,null,null,null,{"$f":"IF(ISBLANK(AH10), \"\", AH10)","v":""},null,null,null,null,null,null,null,null,null,null,null,null,null,null,null,null,null,null,null,null,null,null,null,null,null,null,null,null,null,null,null,null,{"$f":"IF(ISBLANK(BO10), \"\", BO10)","v":""}]
["TEL:",null,null,null,null,{"$f":"IF(ISBLANK(F11), \"\", F11)","v":""},null,null,null,null,null,"（",null,null,{"$f":"IF(ISBLANK(O11), \"\", O11)","v":""},null,null,null,null,null,null,null,"）",null,{"$f":"IF(ISBLANK(Y11), \"\", Y11)","v":""}]
[]
[null,null,null,null,null,null,null,null,null,null,null,null,null,null,null,null,null,null,null,"（頭頂部から大腿基部まで）"]
[]
[]
[]
[null,null,null,null,null,null,null,null,null,null,null,null,null,null,null,null,null,null,null,"※PEM：乳房専用PET",null,null,null,null,null,null,null,null,null,null,null,null,null,null,null,null,null,null,null,null,null,null,null,null,"※PET/CT装置の特性上、吸収補正は低線量CTで減弱補正を行います。"]
[]
[]
[]
[null,null,null,null,null,null,null,null,null,null,null,null,null,null,null,null,null,null,null,null,null,null,null,null,null,null,null,null,null,null,null,null,null,null,null,null,null,null,null,null,null,null,null,null,null,null,null,null,null,null,null,null,null,null,null,null,null,null,null,null,"（",null,"目的臓器：",null,null,null,null,null,null,null,{"$f":"IF(ISBLANK(BS23), \"\", BS23)","v":""},null,null,null,null,null,null,null,null,null,null,null,null,"）"]
[]
[null,null,null,null,null,null,null,null,null,null,null,"※1部位のみ"]
[null,null,null,null,null,null,null,null,null,null,null,null,null,null,null,null,null,null,null,null,null,null,null,null,null,null,null,null,null,null,null,null,null,null,null,null,null,null,null,null,null,null,null,null,null,null,null,null,null,null,null,null,null,null,null,null,null,null,"（",null,{"$f":"IF(ISBLANK(BI26), \"\", BI26)","v":""},null,null,null,null,null,null,null,null,null,null,null,null,null,null,null,null,null,null,null,null,null,null,null,null,null,null,null,null,null,null,null,null,null,"）"]
[]
[]
[null,null,null,null,null,null,null,null,null,null,null,null,null,null,null,null,null,null,null,null,null,null,null,null,null,null,null,null,null,null,null,null,null,null,null,null,null,null,null,null,null,null,null,null,null,null,null,null,null,null,null,null,null,null,null,null,null,null,null,null,null,null,null,null,null,null,null,null,null,"※検査予約日から3ヶ月以内の値を\n　　記載してください。"]
[null,null,null,null,null,null,null,null,null,null,null,null,null,null,null,null,null,null,null,null,null,null,null,"血清クレアチニン値",null,null,null,null,null,null,null,null,null,null,null,null,"（",null,{"$f":"IF(ISBLANK(AM30), \"\", AM30)","v":""},null,null,null,"mg/dl",null,null,null,null,{"$f":"IF(ISBLANK(AV30), \"\", AV30)","v":""},null,null,null,"年",null,{"$f":"IF(ISBLANK(BB30), \"\", BB30)","v":""},null,null,"月",null,{"$f":"IF(ISBLANK(BG30), \"\", BG30)","v":""},null,null,"日 測定）"]
[]
[]
["※ガドリニウム系造影剤使用",null,null,null,null,null,null,null,null,null,null,null,null,null,null,null,null,null,null,null,null,null,null,"※血清クレアチニン男性1.6mg/dl 女性1.2mg/dlを超える場合や気管支喘息の場合は左記検査をお引き受けできません。"]
[]
[]
[null,null,null,null,null,null,null,null,null,null,null,null,null,null,null,null,null,null,null,null,null,null,null,null,null,null,null,null,null,null,null,null,null,null,null,null,null,null,null,null,null,null,null,null,null,null,null,null,null,null,null,null,null,null,null,null,null,null,null,null,null,null,null,null,null,null,null,null,null,null,null,null,null,null,null,"（",null,{"$f":"IF(ISBLANK(BZ36), \"\", BZ36)","v":""},null,null,null,null,null,null,null,null,null,null,null,null,null,null,null,null,"）"]
["　　　　　※複数部位選択可能"]
[]
[null,null,null,null,null,null,null,null,"※1部位のみ"]
[]
[]
[null,null,null,null,null,null,null,null,null,null,null,null,null,null,null,null,null,null,null,null,null,null,null,null,null,null,null,null,null,null,null,null,null,null,null,null,null,null,null,null,null,null,null,null,null,null,null,null,null,null,null,null,null,null,null,null,null,null,null,null,null,null,null,null,null,null,null,null,null,null,null,null,null,null,null,null,null,null,null,null,null,null,null,null,null,null,null,null,null,null,null,null,"　"]
["受診結果DISK",null,null,null,null,null,null,null,null,null,null,null,null,null,null,null,null,null,null,null,null,null,null,null,"必要",null,null,null,null,null,null,null,null,"※ご不要の場合にはご連絡ください。"]
[]
[]
[]
["ふりがな",null,null,null,null,null,null,null,null,null,{"$f":"IF(ISBLANK(K47), \"\", K47)","v":""},null,null,null,null,null,null,null,null,null,null,null,null,null,null,null,null,null,null,null,null,null,null,null,null,null,null,null,null,null,"性　別",null,null,null,null,null,"住所",null,null,null,null,"〒",null,{"$f":"IF(ISBLANK(BB47), \"\", BB47)","v":""},null,null,null,null,null,"―",null,{"$f":"IF(ISBLANK(BJ47), \"\", BJ47)","v":""}]
["患者様名",null,null,null,null,null,null,null,null,null,{"$f":"IF(ISBLANK(K48), \"\", K48)","v":""},null,null,null,null,null,null,null,null,null,null,null,null,null,null,null,null,null,null,null,null,null,null,null,null,null,"様",null,null,null,null,null,null,null,null,null,{"$f":"IF(ISBLANK(AU48), \"\", AU48)","v":""}]
[]
["生年月日"]
[null,null,null,null,null,null,null,null,null,null,null,null,null,null,null,null,null,null,null,null,null,null,{"$f":"IF(ISBLANK(W51), \"\", W51)","v":""},null,null,null,null,null,null,null,null,"年",null,null,{"$f":"IF(ISBLANK(AI51), \"\", AI51)","v":""},null,null,"月",null,null,{"$f":"IF(ISBLANK(AO51), \"\", AO51)","v":""},null,null,"日",null,null,"TEL：",null,null,null,null,{"$f":"IF(ISBLANK(AZ51), \"\", AZ51)","v":""},null,null,null,null,"（",null,{"$f":"IF(ISBLANK(BG51), \"\", BG51)","v":""},null,null,null,null,null,null,"）",null,{"$f":"IF(ISBLANK(BP51), \"\", BP51)","v":""},null,null,null,null,null,null,"携帯：",null,null,null,null,{"$f":"IF(ISBLANK(CB51), \"\", CB51)","v":""},null,null,null,null,"（",null,{"$f":"IF(ISBLANK(CI51), \"\", CI51)","v":""},null,null,null,null,null,null,"）",null,{"$f":"IF(ISBLANK(CR51), \"\", CR51)","v":""}]
[]
[]
["■検査当日にお持ちいただくもの"]
[]
[" 健康保険証、各種受給者証\n（老人医療受給者証など）",null,null,null,null,null,null,null,null,null,null,null,null,null,null,null,null,null,null,null,null,null,null,null,null,null,null,null,null," 問診票・検査同意書\n（検査当日までにご記入ください）"]
["主治医からお預かりになった診療情報提供書（紹介状）、CTやMRIなどのDISK（フィルム）",null,null,null,null,null,null,null,null,null,null,null,null,null,null,null,null,null,null,null,null,null,null,null,null,null,null,null,null," \n検査料金"]
[]
[]
["■検査にあたってのご注意\n・予約時刻の10分前にはご来院ください。\n・当クリニックでは検査結果についての説明は行いません。"]
["■PET検査に当たってのご注意\n①ご予約時間の５時間前から絶食してください（水・無糖のお茶は可）\n②検査当日は糖尿病のお薬（飲み薬・注射薬）の使用を中止してください。\n③検査前日から、下剤（酸化マグネシウム、マグラックスを除く）の服用を中止してください。\n④検査前日から激しい運動はお避け下さい。\n⑤まれに検査終了時間が１時間ほど延長となる場合があります。　　　　　　"]
[]
[null,null,null,null,null,null,null,null,null,null,null,null,null,null,null,null,null,null,null,null,null,null,null,null,null,null,null,null,null,null,null,null,null,null,null,null,null,null,null,null,null,null,null,null,null,null,null,null,null,null,null,null,null,null,null,null,null,null,null,null,"\n\n電車の場合：横浜市営地下鉄ブルーライン\n　　　　　　　　「北新横浜駅」より徒歩約5分\n　　　　　　　　JR「新横浜駅」よりタクシーで約5分\nお車の場合：第三京浜「港北IC」より約10分\n\n〒223-0059　神奈川県横浜市港北区北新横浜1-6-2\n　　　　　　　    TEL：045-540-8211（代）"]
["■MRI検査にあたってのご注意\n・体内に以下の金属を埋め込んだことのある方は事前にお申し出ください。\n　心臓ペースメーカー・血管等ステント・脳動脈瘤等クリップ・人工内耳・人工関節・その他金属\n・MRI検査（上腹部・骨盤部）、造影MRI検査を受診する方は、上記PET検査に当たってのご注意①②を順守してください。\n\n■CT検査（上腹部・骨盤部）、超音波検査（上腹部）にあたってのご注意\n・上記PET検査に当たってのご注意①②を順守してください。 "]